Cogmind - Beta 11.1 *** ADVENTURER MODE // 2022.07.22 @ 21:49:12 Player: Enceladus Result: Destroyed by S-27 Virus with Autogun Performance ------------- Evolutions (3) 1500 Regions Visited (7) 1400 Robots Destroyed (21) 105 Value Destroyed (645) 645 Prototype IDs (1) 20 Alien Tech Used (0) 0 Bonus (0) 0 TOTAL SCORE: 3670 Bonus ------- None Cogmind --------- Core Integrity 0/700 Matter 300/300 Energy 98/100 System Corruption 0% Temperature Cool (0) Movement Core (50) Location -7/Factory Parts ------- > --- POWER (2) -------- (None) > --- PROPULSION (5) --- (None) > --- UTILITY (4) ------ (None) > --- WEAPON (2) ------- (None) > --- INVENTORY (5) ---- Titanium Leg Titanium Leg Titanium Leg Small Storage Unit Improved Signal Interpreter Peak State ------------ > --- POWER ------------ (None) > --- PROPULSION ------- Aluminum Leg Carbon-fiber Leg Carbon-fiber Leg Titanium Leg Titanium Leg > --- UTILITY ---------- Medium Storage Unit Improved Terrain Scan Processor Core Shielding Hacking Suite > --- WEAPON ----------- Gatling Laser Minigun > --- INVENTORY -------- Titanium Leg Titanium Leg Small Storage Unit Improved Signal Interpreter Heavy Flail [Rating: 29] Favorites ----------- Power Ion Engine Engine Ion Engine Propulsion Aluminum Leg Leg Aluminum Leg Utility Core Shielding Device Terrain Scanner Storage Medium Storage Unit Processor Improved Terrain Scan Processor Hackware Hacking Suite Protection Core Shielding Weapon Light Assault Rifle Energy Gun EM Pulse Gun Ballistic Gun Light Assault Rifle Launcher Shock Bomb Launcher Build | -11 -10 -9 -9 -9 -8 -8 -7 ------- Run | Scr Mat Mat Min Exi Min Mat Fac Slots Evolved 6 | . . 2 . . . 2 2 Power 1 | . . 1 . . . . . Propulsion 3 | . . 1 . . . 1 1 Utility 2 | . . . . . . 1 1 Weapon . | . . . . . . . . Parts Attached 34 | 5 1 2 2 . . 17 7 Power 7 | 1 . 1 . . . 5 . Engine 7 | 1 . 1 . . . 5 . Core . | . . . . . . . . Reactor . | . . . . . . . . Propulsion 13 | 2 . . 1 . . 6 4 Treads . | . . . . . . . . Leg 12 | 2 . . . . . 6 4 Wheel 1 | . . . 1 . . . . Hover . | . . . . . . . . Flight . | . . . . . . . . Utility 6 | . 1 1 . . . 3 1 Device 1 | . 1 . . . . . . Storage 1 | . . . . . . . 1 Processor 1 | . . . . . . 1 . Hackware 1 | . . . . . . 1 . Protection 2 | . . 1 . . . 1 . Artifact . | . . . . . . . . Weapon 8 | 2 . . 1 . . 3 2 Energy Gun 4 | 1 . . 1 . . 1 1 Energy Cannon . | . . . . . . . . Ballistic Gun 3 | 1 . . . . . 1 1 Ballistic Cannon . | . . . . . . . . Launcher 1 | . . . . . . 1 . Special Weapon . | . . . . . . . . Impact Weapon . | . . . . . . . . Slashing Weapon . | . . . . . . . . Piercing Weapon . | . . . . . . . . Special Melee Weapon . | . . . . . . . . Unidentified Prototypes 1 | . . . . . . 1 . Corrupted Parts 3 | . . . . . . 3 . System Corruption 10 | . . . . . . 10 . Parts Lost 18 | . . . 4 . . 4 10 Power 6 | . . . 2 . . 3 1 Propulsion 5 | . . . 1 . . . 4 Utility 2 | . . . . . . . 2 Weapon 5 | . . . 1 . . 1 3 Highest Loss Streak 6 | . . . 4 . . 4 6 To Critical Strikes . | . . . . . . . . Average Slot Usage (%) 64 | . 84 80 74 . . 53 60 Engine 8 | . 14 22 17 . . 7 1 Leg 20 | . 28 22 19 . . 16 20 Device 4 | . 13 11 9 . . . . Storage 2 | . . . . . . . 5 Processor 3 | . . . . . . 4 6 Hackware 4 | . . . . . . 8 5 Protection 4 | . . 3 9 . . 4 6 Energy Gun 6 | . 14 11 9 . . 3 4 Ballistic Gun 7 | . 14 11 9 . . 6 5 Naked Turns 149 | . . . 36 21 30 11 51 Heaviest Build 19 | 8 9 13 13 . . 16 19 Greatest Support 74 | 20 20 20 20 3 3 50 74 Greatest Overweight (x) 2 | 2 . . . . . 2 . Average Overweight (x) . | . . . . . . . . Largest Inventory Capacity 10 | 5 5 5 5 5 5 5 10 Average Capacity 6 | 5 5 5 5 5 5 5 9 Most Carried 8 | 4 5 5 4 2 2 5 8 Average Carried 4 | 3 4 4 3 2 2 3 4 Final Capacity 5 | 5 5 5 5 5 5 5 5 Final Carried 5 | 4 5 4 2 2 2 2 5 Class Distribution -------------------- 51% | Mutant 48% | Hacker-Mutant Dominant Class ---------------- Mutant | -10/Materials Mutant | -9/Materials Mutant | -9/Mines Mutant | -9/Exiles Mutant | -8/Mines Hacker-Mutant | -8/Materials Hacker-Mutant | -7/Factory Resources | -11 -10 -9 -9 -9 -8 -8 -7 ----------- Run | Scr Mat Mat Min Exi Min Mat Fac Matter Collected 672 | 250 22 . 37 . . 277 86 Remotely . | . . . . . . . . Salvage Created 877 | . 169 . 140 . . 459 109 Parts 56 | . 12 . 5 . . 38 1 Haulers Intercepted . | . . . . . . . . Recyclers Shooed 1 | . . . . . . 1 . Parts Field Recycled . | . . . . . . . . Retrieved Matter . | . . . . . . . . Parts Self-Destructed . | . . . . . . . . Prevented . | . . . . . . . . Kills | -11 -10 -9 -9 -9 -8 -8 -7 ------- Run | Scr Mat Mat Min Exi Min Mat Fac Combat Hostiles Destroyed 20 | . 4 . 5 . . 9 2 Guns 17 | . 4 . 5 . . 6 2 AOE 3 | . . . . . . 3 . Classes Destroyed 5 | . 1 . 1 . . 3 . Builder 4 | . . . . . . 4 . Swarmer 3 | . . . . . . 3 . Grunt 11 | . 4 . 2 . . 5 . Sentry 3 | . . . . . . 1 2 Assembled 3 | . . . 3 . . . . Best Kill Streak 6 | . 2 . 3 . . 6 1 Combat Bots Only 4 | . 2 . 3 . . 4 1 Max Kills in Single Turn 3 | . 1 . 1 . . 3 1 Gunslinging . | . . . . . . . . Exploded 2 | . . . . . . 2 . Melee . | . . . . . . . . Uniques/NPCs Destroyed . | . . . . . . . . Combat | -11 -10 -9 -9 -9 -8 -8 -7 -------- Run | Scr Mat Mat Min Exi Min Mat Fac Damage Taken 2810 | . 101 . 563 . 106 617 1423 Core 1217 | . 35 . 249 . 106 115 712 Absorbed by Shields . | . . . . . . . . Redirected to Shielding 55 | . . . 5 . . 18 32 Core Remaining (%) 69 | 100 86 . . . 11 79 . Volleys Fired 67 | . 12 . 19 . . 25 11 Largest 2 | . 2 . 2 . . 2 2 Hottest 105 | . 60 . 60 . . 70 105 Shots Fired 123 | . 24 . 37 . . 40 22 Gun 116 | . 24 . 37 . . 33 22 Cannon . | . . . . . . . . Launcher 7 | . . . . . . 7 . Special . | . . . . . . . . Kinetic 67 | . 12 . 19 . . 25 11 Thermal 9 | . . . . . . . 9 Explosive . | . . . . . . . . Electromagnetic 47 | . 12 . 18 . . 15 2 Robot Hit Streak 13 | . 11 . 12 . . 9 13 Robot Miss Streak 3 | . 2 . 3 . . 2 1 Penetration Max . | . . . . . . . . Secondary Targets 1 | . . . 1 . . . . Max Gunslinging Chain 1 | . . . 1 . . . . Shots Hit Robots 92 | . 19 . 24 . . 30 19 Core Hits 52 | . 7 . 13 . . 23 9 Critical Kills . | . . . . . . . . Critical Parts Destroyed . | . . . . . . . . Critical Strikes 1 | . 1 . . . . . . Corrupt 1 | . 1 . . . . . . Melee Attacks . | . . . . . . . . Impact . | . . . . . . . . Slashing . | . . . . . . . . Piercing . | . . . . . . . . Sneak Attacks . | . . . . . . . . Combat Hostiles . | . . . . . . . . Follow-up Attacks . | . . . . . . . . Damage Inflicted 1822 | . 216 . 238 . . 909 459 Guns 1226 | . 216 . 238 . . 370 402 Cannons . | . . . . . . . . Explosions 586 | . . . . . . 535 51 Melee . | . . . . . . . . Ramming 10 | . . . . . . 4 6 Kinetic 550 | . 66 . 106 . . 247 131 Thermal 345 | . . . . . . 55 290 Explosive . | . . . . . . . . Electromagnetic 917 | . 150 . 132 . . 603 32 Impact . | . . . . . . . . Slashing . | . . . . . . . . Piercing . | . . . . . . . . Highest Corruption 10 | . . . . . . 10 . Average Corruption 9 | . . . . . . 9 . Corruption Purged . | . . . . . . . . Corruption Blocked . | . . . . . . . . Effects 9 | . . . . . . 9 . Matter Fused 5 | . . . . . . 5 . Heat Flow Errors 1 | . . . . . . 1 . Energy Discharges 1 | . . . . . . 1 . Alerts 1 | . . . . . . 1 . Misdirections 1 | . . . . . . 1 . Overload Shots . | . . . . . . . . Overflow Damage 29 | . . . . . . 13 16 Projectiles . | . . . . . . . . Explosions 29 | . . . . . . 13 16 Melee . | . . . . . . . . Knockbacks . | . . . . . . . . Impact . | . . . . . . . . Kinetic . | . . . . . . . . Secondary . | . . . . . . . . Self-Inflicted Damage 23 | . . . . . . 23 . Shots 2 | . . . . . . 2 . Rammed . | . . . . . . . . Targets Rammed 2 | . . . . . . 1 1 Kicked 2 | . . . . . . 1 1 Crushed . | . . . . . . . . Highest Temperature 240 | . 70 . 150 . . 240 24 Average Temperature 46 | . 36 . 57 . . 71 12 Received Heat Transfer 1282 | . 72 . 142 . 36 360 672 Siege Activations . | . . . . . . . . Robots Corrupted . | . . . . . . . . Combat Hostiles . | . . . . . . . . Parts Fried . | . . . . . . . . Impact Corruptions . | . . . . . . . . Robots Melted . | . . . . . . . . Combat Hostiles . | . . . . . . . . Parts Melted 2 | . . . . . . . 2 Heat Transferred 750 | . . . . . . 150 600 Parts Sabotaged . | . . . . . . . . Parts Stolen . | . . . . . . . . Parts Stripped . | . . . . . . . . Power Chain Reactions 5 | . . . . . . 4 1 Missiles Intercepted . | . . . . . . . . Alert | -11 -10 -9 -9 -9 -8 -8 -7 ------- Run | Scr Mat Mat Min Exi Min Mat Fac Peak Influence 260 | . 105 37 52 . . 260 163 Initial 101 | . . 37 12 . . . 101 Average 65 | . 46 37 33 . . 110 85 Maximum Alert Level 1 | . . . . . . 1 . Low Security (%) 95 | 100 100 100 100 . 100 77 100 Level 1 4 | . . . . . . 22 . Level 2 . | . . . . . . . . Level 3 . | . . . . . . . . Level 4 . | . . . . . . . . Level 5 . | . . . . . . . . High Security . | . . . . . . . . Max Security . | . . . . . . . . Squads Dispatched 5 | . 1 . . . . 1 3 Investigation 3 | . 1 . . . . . 2 Extermination . | . . . . . . . . Reinforcement 2 | . . . . . . 1 1 Assault . | . . . . . . . . Garrison . | . . . . . . . . Intercept . | . . . . . . . . Searches Triggered . | . . . . . . . . Construction Impeded 1 | . . . . . . 1 . Haulers Reinforced . | . . . . . . . . Active Scanning Responses . | . . . . . . . . Cargo Convoy Interrupts . | . . . . . . . . Stealth | -11 -10 -9 -9 -9 -8 -8 -7 --------- Run | Scr Mat Mat Min Exi Min Mat Fac Distress Signals 3 | . . . . . . 2 1 Communications Jammed . | . . . . . . . . Distress Signals . | . . . . . . . . Times Spotted 64 | . 4 . 15 . 6 18 21 Peak Tracking Total 11 | . 2 . 8 . 6 6 11 Tactical Retreats 5 | . . . 1 . . 2 2 Traps | -11 -10 -9 -9 -9 -8 -8 -7 ------- Run | Scr Mat Mat Min Exi Min Mat Fac Traps Triggered 3 | . 1 . . . . . 2 Indirectly . | . . . . . . . . Trap Hack Attempts . | . . . . . . . . Triggered . | . . . . . . . . Disarmed . | . . . . . . . . Reprogrammed . | . . . . . . . . Reused . | . . . . . . . . Traps Extracted . | . . . . . . . . Installed . | . . . . . . . . Triggered . | . . . . . . . . Machines | -11 -10 -9 -9 -9 -8 -8 -7 ---------- Run | Scr Mat Mat Min Exi Min Mat Fac Machines Disabled . | . . . . . . . . Max in Single Turn . | . . . . . . . . Machines Sabotaged . | . . . . . . . . Garrisons Compromised . | . . . . . . . . Overloaded Fab Kills . | . . . . . . . . Hacking | -11 -10 -9 -9 -9 -8 -8 -7 --------- Run | Scr Mat Mat Min Exi Min Mat Fac Machines Accessed 1 | . . . . . . . 1 Terminals 1 | . . . . . . . 1 Fabricators . | . . . . . . . . Repair Stations . | . . . . . . . . Recycling Units . | . . . . . . . . Scanalyzers . | . . . . . . . . Garrison Access . | . . . . . . . . Total Hacks 3 | . . . . . . . 3 Successful 2 | . . . . . . . 2 Failed 1 | . . . . . . . 1 Catastrophic . | . . . . . . . . Database Lockouts . | . . . . . . . . Manual . | . . . . . . . . Terminals 3 | . . . . . . . 3 Fabricators . | . . . . . . . . Repair Stations . | . . . . . . . . Recycling Units . | . . . . . . . . Scanalyzers . | . . . . . . . . Garrison Access . | . . . . . . . . Terminal Hacks 2 | . . . . . . . 2 Alert Level 1 | . . . . . . . 1 Extermination Status 1 | . . . . . . . 1 Fabricator Hacks . | . . . . . . . . Repair Station Hacks . | . . . . . . . . Recycling Unit Hacks . | . . . . . . . . Scanalyzer . | . . . . . . . . Garrison Access Hacks . | . . . . . . . . Unauthorized Hacks . | . . . . . . . . Terminals . | . . . . . . . . Fabricators . | . . . . . . . . Repair Stations . | . . . . . . . . Recycling Units . | . . . . . . . . Scanalyzers . | . . . . . . . . Garrison Access . | . . . . . . . . Data Cores Recovered . | . . . . . . . . Used . | . . . . . . . . Hacking Detections 1 | . . . . . . . 1 Full Trace Events 1 | . . . . . . . 1 Feedback Events . | . . . . . . . . Feedback Blocked . | . . . . . . . . Robot Schematics Acquired . | . . . . . . . . Robots Built . | . . . . . . . . Authchips . | . . . . . . . . Time . | . . . . . . . . Total Robot Build Rating . | . . . . . . . . Part Schematics Acquired . | . . . . . . . . Parts Built . | . . . . . . . . Authchips . | . . . . . . . . Time . | . . . . . . . . Total Part Build Rating . | . . . . . . . . Parts Repaired . | . . . . . . . . Time . | . . . . . . . . Parts Recycled . | . . . . . . . . Recycled Matter . | . . . . . . . . Retrieved Matter . | . . . . . . . . Retrieved Components . | . . . . . . . . Parts Scanalyzed . | . . . . . . . . Part Schematics Acquired . | . . . . . . . . Parts Damaged . | . . . . . . . . Bothacking | -11 -10 -9 -9 -9 -8 -8 -7 ------------ Run | Scr Mat Mat Min Exi Min Mat Fac Used RIF Installer . | . . . . . . . . Robots Hacked . | . . . . . . . . Non-combat . | . . . . . . . . Combat . | . . . . . . . . Robot Hacks Applied . | . . . . . . . . Relay Couplers Released . | . . . . . . . . Fabnet Peak Effective % . | . . . . . . . . Robots Rewired . | . . . . . . . . Allies Hacked . | . . . . . . . . Hacks Repelled . | . . . . . . . . Allies | -11 -10 -9 -9 -9 -8 -8 -7 -------- Run | Scr Mat Mat Min Exi Min Mat Fac Total Allies . | . . . . . . . . Largest Group . | . . . . . . . . Highest-Rated Group . | . . . . . . . . Highest-Rated Ally . | . . . . . . . . Total Orders . | . . . . . . . . Ally Attacks . | . . . . . . . . Total Damage . | . . . . . . . . Kills . | . . . . . . . . Allies Corrupted . | . . . . . . . . Allies Melted . | . . . . . . . . Intel | -11 -10 -9 -9 -9 -8 -8 -7 ------- Run | Scr Mat Mat Min Exi Min Mat Fac Robot Analysis Total . | . . . . . . . . Derelict Logs Recovered 2 | . . . 2 . . . . Drone Launches . | . . . . . . . . Drone Recoveries . | . . . . . . . . Exploration | -11 -10 -9 -9 -9 -8 -8 -7 ------------- Run | Scr Mat Mat Min Exi Min Mat Fac Turns Passed 1862 | 159 365 56 226 21 30 336 669 Spaces Moved 1236 | 58 210 45 183 42 60 195 443 Core 356 | 16 . . 69 42 60 65 104 Treads . | . . . . . . . . Legs 880 | 42 210 45 114 . . 130 339 Wheels . | . . . . . . . . Hover . | . . . . . . . . Flight . | . . . . . . . . Fastest Speed 50 | 50 120 120 50 50 50 50 50 Average Speed 106 | 114 120 120 93 50 50 121 108 Slowest Speed 150 | 150 120 120 120 50 50 150 130 Overloaded Moves . | . . . . . . . . Propulsion Burnouts . | . . . . . . . . Robots Hopped . | . . . . . . . . Cave-ins Triggered . | . . . . . . . . Exploration Rate (%) 21 | 4 30 8 55 8 24 22 18 Regions Visited 7 Branch Regions 3 Pre-discovered Areas 1 | . . . 1 . . . . Known Exits Taken 1 | . . . . . 1 . . Unknown Exits Taken 6 | 1 1 1 1 1 . 1 . Scrap Searched . | . . . . . . . . Spaces Dug . | . . . . . . . . Terrain Destroyed 19 | . . . . . . 15 4 Melee . | . . . . . . . . Projectile . | . . . . . . . . AOE 19 | . . . . . . 15 4 Terrain Rammed . | . . . . . . . . Walls Destroyed . | . . . . . . . . Machines Disabled . | . . . . . . . . Actions | -11 -10 -9 -9 -9 -8 -8 -7 --------- Run | Scr Mat Mat Min Exi Min Mat Fac Total 1663 | 150 301 47 203 41 59 252 610 Wait 292 | 79 77 . . . . . 136 Move 1229 | 57 209 44 182 41 59 194 443 Hop . | . . . . . . . . Pick Up 35 | 9 2 1 . . . 15 8 Fast Attach 2 | . . . . . . 2 . Attach 32 | 5 1 2 2 . . 15 7 Detach 3 | . . . . . . . 3 Swap . | . . . . . . . . Drop 1 | . . . . . . . 1 Fire 67 | . 12 . 19 . . 25 11 Melee . | . . . . . . . . Ram . | . . . . . . . . Kick 2 | . . . . . . 1 1 Crush . | . . . . . . . . Escape Stasis . | . . . . . . . . Rewire . | . . . . . . . . Trap . | . . . . . . . . Miscellaneous . | . . . . . . . . Route ------- -11/Scrapyard -10/Materials -9/Materials -9/Mines (discovered 2 exits: Mat / [*Exi]) -9/Exiles -8/Mines -8/Materials -7/Factory History --------- Turn | Location | Event 19 | -11/Scrapyard | Discovered new exit (range 16) 160 | -11/Scrapyard | Entered Materials 311 | -10/Materials | Build established: Mutant 507 | -10/Materials | Discovered new exit (range 3) 525 | -10/Materials | Entered another Materials area 525 | -9/Materials | Evolved 2 slots: Power x1, Propulsion x1 561 | -9/Materials | Discovered new exit (range 12) 581 | -9/Materials | Entered Mines 690 | -9/Mines | Assembled infested the area 771 | -9/Mines | Released all parts (6) 786 | -9/Mines | Learned location of Zion (-7) 795 | -9/Mines | Core integrity fell below 50% 799 | -9/Mines | Identified exit to Materials 803 | -9/Mines | Deemed a non-threat by the Exiles lab entrance 804 | -9/Mines | Discovered new exit (range 5) 807 | -9/Mines | Entered Exiles 820 | -9/Exiles | Discovered new exit (range 15) 825 | -9/Exiles | Lost 4 parts (2p1n1w) 828 | -9/Exiles | Entered Mines 845 | -8/Mines | Core integrity fell below 20% 851 | -8/Mines | Discovered exit to Materials (range 12) 858 | -8/Mines | Entered Materials 858 | -8/Materials | Evolved 2 slots: Propulsion x1, Utility x1 1097 | -8/Materials | Lost 4 parts (3p1w) 1113 | -8/Materials | System corruption reached 10% 1162 | -8/Materials | Build established: Hacker-Mutant 1175 | -8/Materials | Discovered new exit (range 16) 1194 | -8/Materials | Entered Factory 1194 | -7/Factory | Evolved 2 slots: Propulsion x1, Utility x1 1432 | -7/Factory | Lost 6 parts (1p4n1w) 1812 | -7/Factory | Released all parts (3) 1830 | -7/Factory | Core integrity fell below 50% 1858 | -7/Factory | Core integrity fell below 20% 1863 | -7/Factory | Destroyed by S-27 Virus with Autogun Last Messages --------------- 01797_ The floor emits a surge of raw power. 01806_ O-24 Administrator: "IFF HANDSHAKE FAILED. SECURING TERMINAL." 01809_ Core Shielding destroyed. 01812_ Released Imp. Terrain Scan Processor. 01812_ Released Titanium Leg. 01812_ Released Med. Storage Unit. 01813_ R-06 Scavenger collects Med. Storage Unit. 01822_ ALERT: Cargo convoy en route, clear transfer corridor. 01823_ ALERT: Hostiles spotted, dispatching reinforcements to Terminal F003. 01830_ Acquired 28 matter. 01830_ K-01 Serf cleans the Fusion Modulator. 01831_ Critical hit (Burn: +37). 01834_ K-01 Serf cleans the Fusion Modulator. 01850_ W-25 Informer distress signal alerts nearby ally. 01854_ S-27 Virus destroyed. 01856_ R-06 Scavenger suffers critical hit (Destroy). 01858_ Critical hit (Burn: +37). 01858_ R-06 Scavenger collects VTOL Module. 01862_ Critical hit (Burn: +37). Map ----- +----------------------------------------------------+ | ???????????? ???????????????????????????????? | | ???????????? #???????????????????????????????? | | ???????????? #???????????????????????????????? | | ############ #???????????????????????????????? | | # +???????????????????????????????? | | ! # #???????????????????????????????? | | # #???????????????????????????????? | | # #???????????????????????????????? | | " % # #???????????????????????????????? | | " """ # #???????????????????????????????? | | " """ # #???????????????????????????????? | | Y """ / #???????????????????????????????? | | " "" = # #???????????????????????????????? | | " "" #* #???????????????????????????????? | | " #% #???????????????????????????????? | | # p #???????????????????????????????? | | ############ ########????????????????????????? | | #????????????????????????? | | #?????""?????????????????? | | ss #?????"""????????????????? | | #????""""????????????????? | | #??? """?????????????????? | | #+############ T### g #?? ???????????????????? | | ?????????????####?# a a ###/##########???????????? | | ??????????????????# g k #???????????? | | ??????????????????# @ ##????????????????? | | ??????????????????# #?????????????????? | | ??????????????????# #?????????????????? | | ??????????????????# #?????????????????? | | ??????????????????##########+###?????????????????? | | ?????????????????????????????????????????????????? | | ?????????????????????????????????????????????????? | | ?????????????????????????????????????????????????? | | ?????????????????????????????????????????????????? | | ?????????????????????????????????????????????????? | | ?????????????????????????????????????????????????? | | ?????????????????????????????????????????????????? | | ?????????????????????????????????????????????????? | | ?????????????????????????????????????????????????? | | ?????????????????????????????????????????????????? | | ?????????????????????????????????????????????????? | | ?????????????????????????????????????????????????? | | ?????????????????????????????????????????????????? | | ?????????????????????????????????????????????????? | | ?????????????????????????????????????????????????? | | ?????????????????????????????????????????????????? | | ?????????????????????????????????????????????????? | | ?????????????????????????????????????????????????? | | ?????????????????????????????????????????????????? | | ?????????????????????????????????????????????????? | +----------------------------------------------------+ Best States ------------- Heat Dissipation 34 Energy Generation 15 Energy Capacity 280 Matter Stores 300 Matter Capacity 300 Sight Range 16 Terrain Scan Range 14 Terrain Scan Density 110 Resistance: KI 20 Resistance: TH 20 Resistance: EX 20 Resistance: EM 20 Resistance: I 20 Resistance: S 20 Resistance: P 20 Core Shielding 20 Evasion (%) 55 Offensive Hacking 20 Item Schematics ----------------- None Robot Schematics ------------------ None Fabricated ------------ Nothing Alien Tech Used ----------------- None Achievements -------------- None Challenges ------------ None Game ------ Seed TitaniumNavigationJammer Manual? 0 Play Time 00:32:46 Cumulative 11.8 hours Start 2022.07.14 @ 02:33:57 End 2022.07.22 @ 21:49:12 Sessions 4 Manual Loads 0 Difficulty Adventurer Special Mode None Game No. 18 Rogue 16 Adventurer 2 Explorer 0 Win Type - Total 0 Types 0/0/0/0/0/0/0/0/0 Lore% 16 Gallery% 18 Achievement% 13 Wizard Run 0 Options --------- ASCII 0 Keyboard 0 Movement Mouse Keybinds 0 Fullscreen 2 Font 24/Terminus Map View 76x50 Tactical HUD 1 Map Filters NONE Filters NONE Steam 1 RUN: a1c1e2d8-a3f7-48e2-8cbb-d97974f1c16e